Cogmind - Beta 14 @@@ ROGUE MODE // 2024.08.09 @ 11:47:25 Player: Compilatron Result: Self-destructed Performance ------------- Evolutions (1) 500 Regions Visited (3) 600 Robots Destroyed (30) 150 Value Destroyed (787) 787 Prototype IDs (0) 0 Alien Tech Used (0) 0 Bonus (0) 0 TOTAL SCORE: 2037 Bonus ------- None Cogmind --------- Core Integrity 100/400 Matter 215/300 Energy 89/100 System Corruption 5% Temperature Warning (378) Movement Core (150) Ox2 Location -9/Storage Parts ------- > --- POWER (1) -------- (None) > --- PROPULSION (3) --- (None) > --- UTILITY (2) ------ Small Storage Unit > --- WEAPON (3) ------- Beam Rifle > --- INVENTORY (8) ---- Light Ion Engine Light Treads Compact Wheel Visual Processing Unit Signal Interpreter Light Armor Plating Light EM Pulse Cannon Peak State ------------ > --- POWER ------------ Ion Engine > --- PROPULSION ------- Aluminum Leg Aluminum Leg Aluminum Leg > --- UTILITY ---------- Small Storage Unit Terrain Scanner > --- WEAPON ----------- Beam Rifle Heavy Assault Rifle Heavy Assault Rifle > --- INVENTORY -------- Light Ion Engine Light Treads Light Treads Compact Wheel Visual Processing Unit Signal Interpreter Light Armor Plating Light EM Pulse Cannon [Rating: 13] Favorites ----------- Power Ion Engine Engine Ion Engine Propulsion Aluminum Leg Treads Light Treads Leg Aluminum Leg Utility Small Storage Unit Device Terrain Scanner Storage Small Storage Unit Protection Light Armor Plating Weapon Heavy Assault Rifle Energy Gun Beam Rifle Energy Cannon Light EM Pulse Cannon Ballistic Gun Heavy Assault Rifle Build | -11 -10 -9 -9 ------- Run | Yrd Mat Mat Sto Slots Evolved 2 | . . 2 . Power . | . . . . Propulsion 1 | . . 1 . Utility . | . . . . Weapon 1 | . . 1 . Parts Attached 24 | 1 2 5 16 Power 2 | . . . 2 Engine 2 | . . . 2 Core . | . . . . Reactor . | . . . . Propulsion 6 | . 1 2 3 Treads 3 | . . 1 2 Leg 3 | . 1 1 1 Wheel . | . . . . Hover . | . . . . Flight . | . . . . Utility 5 | . 1 . 4 Device 3 | . 1 . 2 Storage . | . . . . Processor . | . . . . Hackware . | . . . . Protection 2 | . . . 2 Artifact . | . . . . Weapon 11 | 1 . 3 7 Energy Gun 2 | . . 1 1 Energy Cannon 3 | . . . 3 Ballistic Gun 6 | 1 . 2 3 Ballistic Cannon . | . . . . Launcher . | . . . . Special Weapon . | . . . . Impact Weapon . | . . . . Slashing Weapon . | . . . . Piercing Weapon . | . . . . Special Melee Weapon . | . . . . Unidentified Prototypes . | . . . . Parts Lost 10 | . . . 10 Power 1 | . . . 1 Propulsion 3 | . . . 3 Utility 2 | . . . 2 Weapon 4 | . . . 4 Highest Loss Streak 8 | . . . 8 To Critical Strikes . | . . . . Average Slot Usage (%) 97 | . 94 100 97 Engine 11 | . 14 11 10 Treads 9 | . . 4 12 Leg 22 | . 28 28 19 Device 10 | . 8 11 10 Storage 11 | . 14 11 11 Energy Gun 10 | . 14 11 10 Energy Cannon 4 | . . . 6 Ballistic Gun 15 | . 14 22 14 Peak Build Rating 13 | 6 7 11 13 Average Rating 10 | 6 6 9 12 On Entrance 7 | 6 6 7 11 Naked Turns . | . . . . Heaviest Build 22 | 13 14 19 22 Greatest Support 40 | 20 20 30 40 Greatest Overweight (x) 3 | . . . 3 Average Overweight (x) . | . . . . Largest Inventory Capacity 8 | 8 8 8 8 Average Capacity 8 | 8 8 8 8 Most Carried 8 | 6 8 7 8 Average Carried 6 | 6 6 4 7 Final Capacity 8 | 8 8 8 8 Final Carried 7 | 6 6 5 7 Class Distribution -------------------- 27% | Skirmisher 24% | Scavenger-Skirmisher 16% | Mutant 15% | Scavenger-Gunner 8% | Gunner 4% | Scavenger-Tank Dominant Class ---------------- Mutant | -10/Materials Scavenger-Gunner | -9/Materials Skirmisher | -9/Storage Resources | -11 -10 -9 -9 ----------- Run | Yrd Mat Mat Sto Matter Collected 755 | 171 81 121 382 Remotely . | . . . . Salvage Created 971 | . 120 213 638 Parts 69 | . 17 14 38 Haulers Intercepted . | . . . . Recyclers Shooed . | . . . . Parts Field Recycled . | . . . . Retrieved Matter . | . . . . Parts Self-Destructed . | . . . . Prevented . | . . . . Kills | -11 -10 -9 -9 ------- Run | Yrd Mat Mat Sto Combat Hostiles Destroyed 26 | . 6 4 16 Guns 22 | . 6 4 12 Cannons 4 | . . . 4 Classes Destroyed 6 | . 2 3 1 Worker 1 | . . . 1 Builder 1 | . . 1 . Watcher 2 | . . 1 1 Swarmer 9 | . 5 . 4 Grunt 12 | . 1 3 8 Sentry 5 | . . 1 4 Best Kill Streak 7 | . 3 3 7 Combat Bots Only 4 | . 3 2 4 Max Kills in Single Turn 2 | . 2 1 2 Gunslinging 1 | . 1 . 1 Exploded . | . . . . Melee . | . . . . Uniques/NPCs Destroyed . | . . . . Combat | -11 -10 -9 -9 -------- Run | Yrd Mat Mat Sto Hostile Shots Fired 187 | . 27 18 142 Missed 54 | . 10 7 37 Damage Taken 1631 | . 161 148 1322 Core 355 | . 55 43 257 Absorbed by Shields . | . . . . Regen/Repaired (Parts) 48 | . . . 48 Core Remaining (%) 89 | 100 78 . . Volleys Fired 97 | 1 14 15 67 Largest 3 | 2 2 3 3 Hottest 147 | 80 60 99 147 Shots Fired 230 | 2 28 41 159 Gun 211 | 2 28 41 140 Cannon 19 | . . . 19 Launcher . | . . . . Special . | . . . . Kinetic 144 | . 14 30 100 Thermal 84 | 2 14 11 57 Explosive . | . . . . Electromagnetic 2 | . . . 2 Robot Hit Streak 9 | 1 3 8 9 Robot Miss Streak 5 | 1 4 2 5 Penetration Max . | . . . . Secondary Targets 7 | . 2 . 5 Max Gunslinging Chain 2 | . 1 . 2 Shots Hit Robots 126 | 1 14 29 82 Core Hits 48 | 1 7 12 28 Critical Kills . | . . . . Critical Parts Destroyed 1 | . . . 1 Critical Strikes 4 | . . 1 3 Burn 3 | . . 1 2 Destroy 1 | . . . 1 Melee Attacks . | . . . . Impact . | . . . . Slashing . | . . . . Piercing . | . . . . Sneak Attacks . | . . . . Combat Hostiles . | . . . . Follow-up Attacks . | . . . . Damage Inflicted 1939 | 10 170 338 1421 Guns 1686 | 10 169 338 1169 Cannons 252 | . . . 252 Explosions . | . . . . Melee . | . . . . Ramming 1 | . 1 . . Kinetic 1200 | . 103 232 865 Thermal 691 | 10 66 106 509 Explosive . | . . . . Electromagnetic 47 | . . . 47 Impact . | . . . . Slashing . | . . . . Piercing . | . . . . Highest Corruption 5 | . . . 5 Average Corruption 4 | . . . 4 Corruption Purged . | . . . . Corruption Blocked . | . . . . Effects 31 | . . . 31 Message Errors 6 | . . . 6 Matter Fused 7 | . . . 7 Heat Flow Errors 2 | . . . 2 Energy Discharges 3 | . . . 3 Data Loss (minor) 8 | . . . 8 Data Loss (major) 1 | . . . 1 Misfires 1 | . . . 1 Weapon Failures 3 | . . . 3 Overload Shots . | . . . . Overflow Damage 17 | . . . 17 Projectiles 17 | . . . 17 Explosions . | . . . . Melee . | . . . . Knockbacks . | . . . . Impact . | . . . . Kinetic . | . . . . Secondary . | . . . . Self-Inflicted Damage . | . . . . Shots . | . . . . Rammed . | . . . . Targets Rammed 1 | . 1 . . Kicked 1 | . 1 . . Crushed . | . . . . Highest Temperature 469 | 18 24 108 469 Average Temperature 158 | 12 12 47 190 Received Heat Transfer 531 | . 30 69 432 Effects 7 | . . . 7 Shutdowns 2 | . . . 2 Energy Bleed 1 | . . . 1 Interference 2 | . . . 2 Damage (minor) 2 | . . . 2 Siege Activations . | . . . . Robots Corrupted . | . . . . Combat Hostiles . | . . . . Parts Fried . | . . . . Impact Corruptions . | . . . . Robots Melted . | . . . . Combat Hostiles . | . . . . Parts Melted 3 | . . 1 2 Heat Transferred 1792 | 25 150 322 1295 Parts Sabotaged . | . . . . Parts Stolen . | . . . . Parts Stripped . | . . . . Power Chain Reactions . | . . . . Alert | -11 -10 -9 -9 ------- Run | Yrd Mat Mat Sto Peak Influence 224 | . 180 173 224 Initial 76 | . . 76 72 Average 103 | . 104 95 106 Maximum Alert Level 1 | . . . 1 Low Security (%) 82 | 100 100 100 73 Level 1 17 | . . . 26 Level 2 . | . . . . Level 3 . | . . . . Level 4 . | . . . . Level 5 . | . . . . High Security . | . . . . Max Security . | . . . . Squads Dispatched 4 | . 1 2 1 Investigation 2 | . . 1 1 Extermination . | . . . . Reinforcement 2 | . 1 1 . Assault . | . . . . Garrison . | . . . . Intercept . | . . . . Searches Triggered . | . . . . Construction Impeded . | . . . . Haulers Reinforced . | . . . . Active Scanning Responses . | . . . . Cargo Convoy Interrupts . | . . . . Stealth | -11 -10 -9 -9 --------- Run | Yrd Mat Mat Sto Distress Signals 1 | . . . 1 Communications Jammed . | . . . . Distress Signals . | . . . . Times Spotted 36 | . 10 5 21 Peak Tracking Total 8 | . 3 3 8 Tactical Retreats 1 | . . 1 . Traps | -11 -10 -9 -9 ------- Run | Yrd Mat Mat Sto Traps Triggered 6 | . . 1 5 Indirectly . | . . . . Trap Hack Attempts . | . . . . Triggered . | . . . . Disarmed . | . . . . Reprogrammed . | . . . . Reused . | . . . . Traps Extracted . | . . . . Installed . | . . . . Triggered . | . . . . Machines | -11 -10 -9 -9 ---------- Run | Yrd Mat Mat Sto Machines Disabled 1 | . 1 . . Max in Single Turn 1 | . 1 . . Machines Repaired . | . . . . Machines Dismantled . | . . . . Machines Sabotaged . | . . . . Overloaded Fab Kills . | . . . . Hacking | -11 -10 -9 -9 --------- Run | Yrd Mat Mat Sto Machines Accessed 11 | . 3 1 7 Terminals 8 | . 3 1 4 Fabricators . | . . . . Repair Stations 1 | . . . 1 Recycling Units 2 | . . . 2 Scanalyzers . | . . . . Garrison Access . | . . . . Total Hacks 25 | . 6 6 13 Successful 14 | . 3 4 7 Failed 11 | . 3 2 6 Catastrophic 3 | . . . 3 Database Lockouts . | . . . . Manual 11 | . 3 5 3 Terminals 20 | . 6 6 8 Fabricators . | . . . . Repair Stations 2 | . . . 2 Recycling Units 3 | . . . 3 Scanalyzers . | . . . . Garrison Access . | . . . . Terminal Hacks 7 | . 2 2 3 Open Door 1 | . . . 1 Terminal Index 1 | . . 1 . Alert Level 1 | . . . 1 Unreport Threat 1 | . . 1 . Locate Traps 3 | . 2 . 1 Fabricator Hacks . | . . . . Repair Station Hacks 2 | . . . 2 Scan Component 1 | . . . 1 Repair 1 | . . . 1 Recycling Unit Hacks . | . . . . Scanalyzer . | . . . . Garrison Access Hacks . | . . . . Unauthorized Hacks 5 | . 1 2 2 Terminals 3 | . 1 2 . Track 1 | . . 1 . Operators 2 | . 1 1 . Fabricators . | . . . . Repair Stations . | . . . . Recycling Units 2 | . . . 2 Reject 2 | . . . 2 Scanalyzers . | . . . . Garrison Access . | . . . . Data Cores Recovered . | . . . . Used . | . . . . Hacking Detections 9 | . 2 1 6 Full Trace Events 1 | . . . 1 Feedback Events 1 | . . . 1 Corruption 1 | . . . 1 Feedback Blocked . | . . . . Robot Schematics Acquired . | . . . . Robots Built . | . . . . Authchips . | . . . . Time . | . . . . Total Robot Build Rating . | . . . . Part Schematics Acquired . | . . . . Parts Built . | . . . . Authchips . | . . . . Time . | . . . . Total Part Build Rating . | . . . . Parts Repaired 1 | . . . 1 Time 26 | . . . 26 Parts Recycled . | . . . . Recycled Matter . | . . . . Retrieved Matter . | . . . . Retrieved Components . | . . . . Parts Scanalyzed . | . . . . Part Schematics Acquired . | . . . . Parts Damaged . | . . . . Bothacking | -11 -10 -9 -9 ------------ Run | Yrd Mat Mat Sto Used RIF Installer . | . . . . Robots Hacked . | . . . . Non-combat . | . . . . Combat . | . . . . Robot Hacks Applied . | . . . . Relay Couplers Released . | . . . . Fabnet Peak Effective % . | . . . . Robots Rewired . | . . . . Allies Hacked . | . . . . Hacks Repelled . | . . . . Allies | -11 -10 -9 -9 -------- Run | Yrd Mat Mat Sto Total Allies . | . . . . Largest Group . | . . . . Highest-Rated Group . | . . . . Highest-Rated Ally . | . . . . Total Orders . | . . . . Ally Attacks . | . . . . Total Damage . | . . . . Kills . | . . . . Allies Corrupted . | . . . . Allies Melted . | . . . . Intel | -11 -10 -9 -9 ------- Run | Yrd Mat Mat Sto Robot Analysis Total . | . . . . Derelict Logs Recovered . | . . . . Drone Launches . | . . . . Drone Recoveries . | . . . . Exploration | -11 -10 -9 -9 ------------- Run | Yrd Mat Mat Sto Turns Passed 1708 | 7 263 295 1143 Spaces Moved 764 | 3 176 152 433 Core 2 | . . . 2 Treads 94 | . . . 94 Legs 668 | 3 176 152 337 Wheels . | . . . . Hover . | . . . . Flight . | . . . . Fastest Speed 120 | 120 120 120 120 Average Speed 136 | 120 120 120 149 Slowest Speed 200 | 120 120 120 200 Overloaded Moves . | . . . . Propulsion Burnouts . | . . . . Robots Hopped . | . . . . Cave-ins Triggered . | . . . . Exploration Rate (%) 28 | 2 38 7 65 Regions Visited 3 Branch Regions 1 Pre-discovered Areas . | . . . . Known Exits Taken . | . . . . Unknown Exits Taken 3 | 1 1 1 . Scrap Searched . | . . . . Spaces Dug . | . . . . Terrain Destroyed . | . . . . Melee . | . . . . Projectile . | . . . . AOE . | . . . . Terrain Rammed . | . . . . Walls Destroyed . | . . . . Machines Disabled . | . . . . Actions | -11 -10 -9 -9 --------- Run | Yrd Mat Mat Sto Total 1238 | 5 201 234 798 Wait 312 | . . 56 256 Move 761 | 2 175 151 433 Hop . | . . . . Pick Up 21 | . 5 4 12 Fast Attach 3 | . . . 3 Attach 8 | 1 1 2 4 Detach 1 | 1 . . . Swap 13 | . 1 3 9 Drop 16 | . 4 3 9 Fire 97 | 1 14 15 67 Melee . | . . . . Ram . | . . . . Kick 1 | . 1 . . Crush . | . . . . Escape Stasis 5 | . . . 5 Rewire . | . . . . Trap . | . . . . Miscellaneous . | . . . . Route ------- -11/Scrapyard -10/Materials (discovered 2 exits: *Mat / [*Min]) -9/Materials -9/Storage History --------- Turn | Location | Event 5 | -11/Scrapyard | Discovered new exit (range 2) 8 | -11/Scrapyard | Entered Materials 61 | -10/Materials | Discovered new exit (range 12) 159 | -10/Materials | Discovered new exit (range 16) 271 | -10/Materials | Entered another Materials area 271 | -9/Materials | Evolved 2 slots: Propulsion x1, Weapon x1 361 | -9/Materials | Discovered new exit (range 15) 566 | -9/Materials | Entered Storage 870 | -9/Storage | Repaired Ion Engine 1083 | -9/Storage | Build established: Skirmisher 1524 | -9/Storage | Build established: Scavenger-Skirmisher 1673 | -9/Storage | Core integrity fell below 50% 1709 | -9/Storage | Self-destructed Last Messages --------------- (-17). 01673_ System corrupted: Matter fused (-7). 01674_ Particle Cannon destroyed. 01676_ Power failure, Ion Engine shutdown. 01677_ Overheating: Hvy. Assault Rifle damaged (-5). 01684_ Hvy. Assault Rifle destroyed. 01685_ Acquired 19 matter. 01688_ System corrupted: Component data lost. 01688_ M-13 Machinist repairs Heat Sink. 01689_ Acquired Beam Rifle. 01690_ Lgt. Treads destroyed. 01690_ M-13 Machinist repairs Aluminum Leg. 01691_ G-34 Mercenary destroyed. 01696_ Critical hit (Burn: +37). 01699_ Y-45 Defender suffers critical hit (Burn). 01702_ Ion Engine destroyed. 01705_ Terrain Scanner destroyed. 01708_ Critical hit (Burn: +37). Map ----- +----------------------------------------------------+ | | | | | | | | | | | | | | | | | | | | | | | | | | | | | | | | | | | | | | | ?????????##?##?#########??????#?????????? | | ???????????????# ####?????????????? | | ??????#?#????#?# """ """#?????????????? | | ???????????????# """ R"#?????????????? | | ?????????????#?# """ """#?????????????? | | ??????????#??### #?#????#?????????? | | ???????????????#@*% #????????????????? | | ???????????##??#==m! !#?#??????????????? | | ???????#?#?#"####Y######???? ??????????? | | ????????????" =[Y= #???????? ??????????? | | ????????????" =%*!#???? ??????????????? | | ????#???????"#T### #???? ??????????????? | | ?????????????##??# #??????"? ??????????? | | ??????????#??????# #?????????"?????????? | | ?????#?????#?#???# #???? ??????????????? | | ???????###??????## ##??????????????????? | | ???????# ##### ########+#######???? | | ???????# T + ?? | | ???????# "" #"???????? | | ???????# #### ### #????????? | | ???????## ???### ###?# #????????? | | ?????????????# # + ????? | | ?????????????# / #""" ?? | | ?????????????# """" # ![[ #????????? | | ???????????? + """" # ![[ #????????? | | ?????????? ### ] """" # ![ # ???????? | | ???????????#?# """" # #????????? | | ????????????## # #????????? | | ?????????????# + #??#?????? | | ?????????????### #######/### #????????? | | ????????????#??##????? # #????????? | +----------------------------------------------------+ Best States ------------- Heat Dissipation 28 Energy Generation 10 Energy Capacity 250 Matter Stores 300 Matter Capacity 300 Sight Range 16 Terrain Scan Range 14 Terrain Scan Density 10 Armor Coverage 150 Evasion (%) 55 Recoil Reduction 2 Item Schematics ----------------- None Robot Schematics ------------------ None Fabricated ------------ Nothing Alien Tech Used ----------------- None Achievements -------------- Novice Programmer Challenges ------------ None Game ------ Seed QuantumPiercingChronowheel Manual? 0 Play Time 00:17:14 Cumulative 30.2 hours Start 2024.08.09 @ 11:30:11 End 2024.08.09 @ 11:47:25 Sessions 1 Manual Loads 0 Difficulty Rogue Special Mode None Game No. 39 Rogue 17 Adventurer 20 Explorer 2 Win Type - Total 0 Types 0/0/0/0/0/0/0/0/0 Lore% 21 Gallery% 27 Achievement% 28 Wizard Run 0 Options --------- Layout 1 ASCII 0 Keyboard 0 Movement Numpad Keybinds 0 Fullscreen 2 Font 24/Smallcaps Map View 50x35 Zoom Use 0% Tactical HUD 1 Map Filters NONE Filters NONE Steam 1 RUN: e21adee2-14e6-478f-90c6-cab7a349b446